Workbook

Sheet data
A2: ticker | B2: company name | C2: year | D2: period | E2: revenue | F2: cost of revenue | G2: profit margin | H2: assets | I2: operating leverage | J2: equity | K2: financial leverage | L2: return on equity
A3: DD | B3: =_xll.CalcbenchData("entity_name", A3, 2018, 0) -> Dupont E I De Nemours & Co | C3: 2009 | D3: Q2 | E3: =_xll.CalcbenchData("revenue", A3,C3,D3) -> 6858000000 | F3: =_xll.CalcbenchData("costofrevenue",A3,C3,D3) -> 6510000000 | G3: =(E3-F3)/E3 -> 0.05074365704 | H3: =_xll.CalcbenchData("assets", A3,C3,D3) -> 35258000000 | I3: =E3/H3 -> 0.1945090476 | J3: =_xll.CalcbenchData("stockholdersequity", A3,C3,D3) -> 7474000000 | K3: =H3/J3 -> 4.717420391 | L3: =G3*I3*K3 -> 0.0465614129
A4: DD | B4: =_xll.CalcbenchData("entity_name", A4, 2018, 0) -> Dupont E I De Nemours & Co | C4: 2009 | D4: Q3 | E4: =_xll.CalcbenchData("revenue", A4,C4,D4) -> 5961000000 | F4: =_xll.CalcbenchData("costofrevenue",A4,C4,D4) -> 5665000000 | G4: =(E4-F4)/E4 -> 0.04965609797 | H4: =_xll.CalcbenchData("assets", A4,C4,D4) -> 36168000000 | I4: =E4/H4 -> 0.1648142004 | J4: =_xll.CalcbenchData("stockholdersequity", A4,C4,D4) -> 8083000000 | K4: =H4/J4 -> 4.474576271 | L4: =G4*I4*K4 -> 0.03662006681
A5: DD | B5: =_xll.CalcbenchData("entity_name", A5, 2018, 0) -> Dupont E I De Nemours & Co | C5: 2009 | D5: Y | E5: =_xll.CalcbenchData("revenue", A5,C5,D5) -> 26109000000 | F5: =_xll.CalcbenchData("costofrevenue",A5,C5,D5) -> 19708000000 | G5: =(E5-F5)/E5 -> 0.2451645027 | H5: =_xll.CalcbenchData("assets", A5,C5,D5) -> 38185000000 | I5: =E5/H5 -> 0.6837501637 | J5: =_xll.CalcbenchData("stockholdersequity", A5,C5,D5) -> 7215000000 | K5: =H5/J5 -> 5.292446292 | L5: =G5*I5*K5 -> 0.8871794872
A6: DD | B6: =_xll.CalcbenchData("entity_name", A6, 2018, 0) -> Dupont E I De Nemours & Co | C6: 2010 | D6: Q1 | E6: =_xll.CalcbenchData("revenue", A6,C6,D6) -> 8484000000 | F6: =_xll.CalcbenchData("costofrevenue",A6,C6,D6) -> 5796000000 | G6: 0.3168316832 | H6: =_xll.CalcbenchData("assets", A6,C6,D6) -> 37986000000 | I6: 0.2233454431 | J6: =_xll.CalcbenchData("stockholdersequity", A6,C6,D6) -> 8423000000 | K6: 4.50979461 | L6: 0.3191262021
A7: DD | B7: =_xll.CalcbenchData("entity_name", A7, 2018, 0) -> Dupont E I De Nemours & Co | C7: 2010 | D7: Q2 | E7: =_xll.CalcbenchData("revenue", A7,C7,D7) -> 8616000000 | F7: =_xll.CalcbenchData("costofrevenue",A7,C7,D7) -> 5984000000 | G7: 0.3054781801 | H7: =_xll.CalcbenchData("assets", A7,C7,D7) -> 37712000000 | I7: 0.228468392 | J7: =_xll.CalcbenchData("stockholdersequity", A7,C7,D7) -> 9276000000 | K7: 4.065545494 | L7: 0.2837429927
A8: DD | B8: =_xll.CalcbenchData("entity_name", A8, 2018, 0) -> Dupont E I De Nemours & Co | C8: 2010 | D8: Q3 | E8: =_xll.CalcbenchData("revenue", A8,C8,D8) -> 7001000000 | F8: =_xll.CalcbenchData("costofrevenue",A8,C8,D8) -> 5443000000 | G8: =(E8-F8)/E8 -> 0.2225396372 | H8: =_xll.CalcbenchData("assets", A8,C8,D8) -> 39918000000 | I8: 0.1753845383 | J8: =_xll.CalcbenchData("stockholdersequity", A8,C8,D8) -> 9651000000 | K8: 4.136151694 | L8: 0.1614340483
A9: DD | B9: =_xll.CalcbenchData("entity_name", A9, 2018, 0) -> Dupont E I De Nemours & Co | C9: 2010 | D9: Y | E9: =_xll.CalcbenchData("revenue", A9,C9,D9) -> 27700000000 | F9: =_xll.CalcbenchData("costofrevenue",A9,C9,D9) -> 20574000000 | G9: =(E9-F9)/E9 -> 0.2572563177 | H9: =_xll.CalcbenchData("assets", A9,C9,D9) -> 40410000000 | I9: =E9/H9 -> 0.6854738926 | J9: =_xll.CalcbenchData("stockholdersequity", A9,C9,D9) -> 9800000000 | K9: =H9/J9 -> 4.123469388 | L9: =G9*I9*K9 -> 0.7271428571
A10: DD | B10: =_xll.CalcbenchData("entity_name", A10, 2018, 0) -> Dupont E I De Nemours & Co | C10: 2011 | D10: Q1 | E10: =_xll.CalcbenchData("revenue", A10,C10,D10) -> 9041000000 | F10: =_xll.CalcbenchData("costofrevenue",A10,C10,D10) -> 6831000000 | G10: 0.2444419865 | H10: =_xll.CalcbenchData("assets", A10,C10,D10) -> 42600000000 | I10: 0.2122300469 | J10: =_xll.CalcbenchData("stockholdersequity", A10,C10,D10) -> 11279000000 | K10: 3.776930579 | L10: 0.1959393563
A11: DD | B11: =_xll.CalcbenchData("entity_name", A11, 2018, 0) -> Dupont E I De Nemours & Co | C11: 2011 | D11: Q2 | E11: =_xll.CalcbenchData("revenue", A11,C11,D11) -> 9159000000 | F11: =_xll.CalcbenchData("costofrevenue",A11,C11,D11) -> 7191000000 | G11: 0.2148706191 | H11: =_xll.CalcbenchData("assets", A11,C11,D11) -> 47736000000 | I11: 0.1918677728 | J11: =_xll.CalcbenchData("stockholdersequity", A11,C11,D11) -> 12502000000 | K11: 3.818269077 | L11: 0.1574148136
A12: DD | B12: =_xll.CalcbenchData("entity_name", A12, 2018, 0) -> Dupont E I De Nemours & Co | C12: 2011 | D12: Q3 | E12: =_xll.CalcbenchData("revenue", A12,C12,D12) -> 8138000000 | F12: =_xll.CalcbenchData("costofrevenue",A12,C12,D12) -> 6345000000 | G12: 0.220324404 | H12: =_xll.CalcbenchData("assets", A12,C12,D12) -> 47794000000 | I12: 0.1702724191 | J12: =_xll.CalcbenchData("stockholdersequity", A12,C12,D12) -> 12024000000 | K12: 3.974883566 | L12: 0.1491184298
A13: DD | B13: =_xll.CalcbenchData("entity_name", A13, 2018, 0) -> Dupont E I De Nemours & Co | C13: 2011 | D13: Y | E13: =_xll.CalcbenchData("revenue", A13,C13,D13) -> 33681000000 | F13: =_xll.CalcbenchData("costofrevenue",A13,C13,D13) -> 21264000000 | G13: =(E13-F13)/E13 -> 0.3686648259 | H13: =_xll.CalcbenchData("assets", A13,C13,D13) -> 48643000000 | I13: =E13/H13 -> 0.6924120634 | J13: =_xll.CalcbenchData("stockholdersequity", A13,C13,D13) -> 9208000000 | K13: =H13/J13 -> 5.282688966 | L13: =G13*I13*K13 -> 1.348501303
A14: DD | B14: =_xll.CalcbenchData("entity_name", A14, 2018, 0) -> Dupont E I De Nemours & Co | C14: 2012 | D14: Q1 | E14: =_xll.CalcbenchData("revenue", A14,C14,D14) -> 10180000000 | F14: =_xll.CalcbenchData("costofrevenue",A14,C14,D14) -> 6816000000 | G14: 0.3304518664 | H14: =_xll.CalcbenchData("assets", A14,C14,D14) -> 50223000000 | I14: 0.2026959759 | J14: =_xll.CalcbenchData("stockholdersequity", A14,C14,D14) -> 10427000000 | K14: 4.816629903 | L14: 0.322623957
A15: DD | B15: =_xll.CalcbenchData("entity_name", A15, 2018, 0) -> Dupont E I De Nemours & Co | C15: 2012 | D15: Q2 | E15: =_xll.CalcbenchData("revenue", A15,C15,D15) -> 9917000000 | F15: =_xll.CalcbenchData("costofrevenue",A15,C15,D15) -> 5844000000 | G15: 0.4107088837 | H15: =_xll.CalcbenchData("assets", A15,C15,D15) -> 50031000000 | I15: 0.1982171054 | J15: =_xll.CalcbenchData("stockholdersequity", A15,C15,D15) -> 10645000000 | K15: 4.69995303 | L15: 0.3826209488
A16: DD | B16: =_xll.CalcbenchData("entity_name", A16, 2018, 0) -> Dupont E I De Nemours & Co | C16: 2012 | D16: Q3 | E16: =_xll.CalcbenchData("revenue", A16,C16,D16) -> 7390000000 | F16: =_xll.CalcbenchData("costofrevenue",A16,C16,D16) -> 4779000000 | G16: 0.3533152909 | H16: =_xll.CalcbenchData("assets", A16,C16,D16) -> 50607000000 | I16: 0.1460272294 | J16: =_xll.CalcbenchData("stockholdersequity", A16,C16,D16) -> 10711000000 | K16: 4.724768929 | L16: 0.2437680889
A17: DD | B17: =_xll.CalcbenchData("entity_name", A17, 2018, 0) -> Dupont E I De Nemours & Co | C17: 2012 | D17: Y | E17: =_xll.CalcbenchData("revenue", A17,C17,D17) -> 34812000000 | F17: =_xll.CalcbenchData("costofrevenue",A17,C17,D17) -> 21400000000 | G17: =(E17-F17)/E17 -> 0.3852694473 | H17: =_xll.CalcbenchData("assets", A17,C17,D17) -> 49859000000 | I17: =E17/H17 -> 0.6982089492 | J17: =_xll.CalcbenchData("stockholdersequity", A17,C17,D17) -> 10299000000 | K17: =H17/J17 -> 4.841149626 | L17: =G17*I17*K17 -> 1.302262356
A18: DD | B18: =_xll.CalcbenchData("entity_name", A18, 2018, 0) -> Dupont E I De Nemours & Co | C18: 2013 | D18: Q1 | E18: =_xll.CalcbenchData("revenue", A18,C18,D18) -> 10408000000 | F18: =_xll.CalcbenchData("costofrevenue",A18,C18,D18) -> 6193000000 | G18: 0.4049769408 | H18: =_xll.CalcbenchData("assets", A18,C18,D18) -> 50564000000 | I18: 0.2058381457 | J18: =_xll.CalcbenchData("stockholdersequity", A18,C18,D18) -> 12315000000 | K18: 4.10588713 | L18: 0.3422655298
A19: DD | B19: =_xll.CalcbenchData("entity_name", A19, 2018, 0) -> Dupont E I De Nemours & Co | C19: 2013 | D19: Q2 | E19: =_xll.CalcbenchData("revenue", A19,C19,D19) -> 9844000000 | F19: =_xll.CalcbenchData("costofrevenue",A19,C19,D19) -> 6057000000 | G19: 0.3847013409 | H19: =_xll.CalcbenchData("assets", A19,C19,D19) -> 51349000000 | I19: 0.1917077256 | J19: =_xll.CalcbenchData("stockholdersequity", A19,C19,D19) -> 13355000000 | K19: 3.844926994 | L19: 0.2835642082
A20: DD | B20: =_xll.CalcbenchData("entity_name", A20, 2018, 0) -> Dupont E I De Nemours & Co | C20: 2013 | D20: Q3 | E20: =_xll.CalcbenchData("revenue", A20,C20,D20) -> 7735000000 | F20: =_xll.CalcbenchData("costofrevenue",A20,C20,D20) -> 5165000000 | G20: 0.3322559793 | H20: =_xll.CalcbenchData("assets", A20,C20,D20) -> 51990000000 | I20: 0.1487786113 | J20: =_xll.CalcbenchData("stockholdersequity", A20,C20,D20) -> 13900000000 | K20: 3.74028777 | L20: 0.1848920863
A21: DD | B21: =_xll.CalcbenchData("entity_name", A21, 2018, 0) -> Dupont E I De Nemours & Co | C21: 2014 | D21: Q1 | E21: =_xll.CalcbenchData("revenue", A21,C21,D21) -> 8594000000 | F21: =_xll.CalcbenchData("costofrevenue",A21,C21,D21) -> 4862000000 | G21: 0.434256458 | H21: =_xll.CalcbenchData("assets", A21,C21,D21) -> 47800000000 | I21: 0.179790795 | J21: =_xll.CalcbenchData("stockholdersequity", A21,C21,D21) -> 16442000000 | K21: 2.907188906 | L21: 0.2269796862
A22: DD | B22: =_xll.CalcbenchData("entity_name", A22, 2018, 0) -> Dupont E I De Nemours & Co | C22: 2014 | D22: Q2 | E22: =_xll.CalcbenchData("revenue", A22,C22,D22) -> 8058000000 | F22: =_xll.CalcbenchData("costofrevenue",A22,C22,D22) -> 4790000000 | G22: =(E22-F22)/E22 -> 0.4055596922 | H22: =_xll.CalcbenchData("assets", A22,C22,D22) -> 48314000000 | I22: =E22/H22 -> 0.166783955 | J22: =_xll.CalcbenchData("stockholdersequity", A22,C22,D22) -> 17128000000 | K22: =H22/J22 -> 2.820761326 | L22: =G22*I22*K22 -> 0.1907986922
A23: DD | B23: =_xll.CalcbenchData("entity_name", A23, 2018, 0) -> Dupont E I De Nemours & Co | C23: 2014 | D23: Q3 | E23: =_xll.CalcbenchData("revenue", A23,C23,D23) -> 5905000000 | F23: =_xll.CalcbenchData("costofrevenue",A23,C23,D23) -> 3698000000 | G23: 0.3737510584 | H23: =_xll.CalcbenchData("assets", A23,C23,D23) -> 47911000000 | I23: 0.1232493582 | J23: =_xll.CalcbenchData("stockholdersequity", A23,C23,D23) -> 15982000000 | K23: 2.997810036 | L23: 0.1380928545
A24: DD | B24: =_xll.CalcbenchData("entity_name", A24, 2018, 0) -> Dupont E I De Nemours & Co | C24: 2014 | D24: Y | E24: =_xll.CalcbenchData("revenue", A24,C24,D24) -> 28406000000 | F24: =_xll.CalcbenchData("costofrevenue",A24,C24,D24) -> 17023000000 | G24: 0.4007251989 | H24: =_xll.CalcbenchData("assets", A24,C24,D24) -> 50490000000 | I24: 0.5626064567 | J24: =_xll.CalcbenchData("stockholdersequity", A24,C24,D24) -> 13378000000 | K24: 3.774106742 | L24: 0.8508745702
A25: DD | B25: =_xll.CalcbenchData("entity_name", A25, 2018, 0) -> Dupont E I De Nemours & Co | C25: 2015 | D25: Q1 | E25: =_xll.CalcbenchData("revenue", A25,C25,D25) -> 7837000000 | F25: =_xll.CalcbenchData("costofrevenue",A25,C25,D25) -> 4516000000 | G25: 0.4237590915 | H25: =_xll.CalcbenchData("assets", A25,C25,D25) -> 46175000000 | I25: 0.1697238766 | J25: =_xll.CalcbenchData("stockholdersequity", A25,C25,D25) -> 12862000000 | K25: 3.590032654 | L25: 0.2582024568
A26: DD | B26: =_xll.CalcbenchData("entity_name", A26, 2018, 0) -> Dupont E I De Nemours & Co | C26: 2015 | D26: Q2 | E26: =_xll.CalcbenchData("revenue", A26,C26,D26) -> 7121000000 | F26: =_xll.CalcbenchData("costofrevenue",A26,C26,D26) -> 4103000000 | G26: 0.4238168797 | H26: =_xll.CalcbenchData("assets", A26,C26,D26) -> 48106000000 | I26: 0.1480272731 | J26: =_xll.CalcbenchData("stockholdersequity", A26,C26,D26) -> 13653000000 | K26: 3.523474694 | L26: 0.2210503186
A27: DD | B27: =_xll.CalcbenchData("entity_name", A27, 2018, 0) -> Dupont E I De Nemours & Co | C27: 2015 | D27: Q3 | E27: =_xll.CalcbenchData("revenue", A27,C27,D27) -> 4873000000 | F27: =_xll.CalcbenchData("costofrevenue",A27,C27,D27) -> 3084000000 | G27: 0.3671249743 | H27: =_xll.CalcbenchData("assets", A27,C27,D27) -> 40302000000 | I27: 0.1209121135 | J27: =_xll.CalcbenchData("stockholdersequity", A27,C27,D27) -> 11222000000 | K27: 3.591338442 | L27: 0.1594189984
A28: DD | B28: =_xll.CalcbenchData("entity_name", A28, 2018, 0) -> Dupont E I De Nemours & Co | C28: 2015 | D28: Y | E28: =_xll.CalcbenchData("revenue", A28,C28,D28) -> 23657000000 | F28: =_xll.CalcbenchData("costofrevenue",A28,C28,D28) -> 14591000000 | G28: 0.3832269519 | H28: =_xll.CalcbenchData("assets", A28,C28,D28) -> 41166000000 | I28: 0.5746732741 | J28: =_xll.CalcbenchData("stockholdersequity", A28,C28,D28) -> 10200000000 | K28: 4.035882353 | L28: 0.8888235294
A29: DD | B29: =_xll.CalcbenchData("entity_name", A29, 2018, 0) -> Dupont E I De Nemours & Co | C29: 2016 | D29: Q1 | E29: =_xll.CalcbenchData("revenue", A29,C29,D29) -> 7014000000 | F29: =_xll.CalcbenchData("costofrevenue",A29,C29,D29) -> 4103000000 | G29: 0.4150270887 | H29: =_xll.CalcbenchData("assets", A29,C29,D29) -> 41801000000 | I29: 0.1677950288 | J29: =_xll.CalcbenchData("stockholdersequity", A29,C29,D29) -> 10598000000 | K29: 3.944234761 | L29: 0.2746744669
A30: DD | B30: =_xll.CalcbenchData("entity_name", A30, 2018, 0) -> Dupont E I De Nemours & Co | C30: 2016 | D30: Q2 | E30: =_xll.CalcbenchData("revenue", A30,C30,D30) -> 6646000000 | F30: =_xll.CalcbenchData("costofrevenue",A30,C30,D30) -> 3823000000 | G30: 0.424766777 | H30: =_xll.CalcbenchData("assets", A30,C30,D30) -> 42266000000 | I30: 0.1572422278 | J30: =_xll.CalcbenchData("stockholdersequity", A30,C30,D30) -> 10541000000 | K30: 4.009676501 | L30: 0.2678114031
A31: DD | B31: =_xll.CalcbenchData("entity_name", A31, 2018, 0) -> Dupont E I De Nemours & Co | C31: 2016 | D31: Q3 | E31: =_xll.CalcbenchData("revenue", A31,C31,D31) -> 4646000000 | F31: =_xll.CalcbenchData("costofrevenue",A31,C31,D31) -> 2997000000 | G31: 0.3549289712 | H31: =_xll.CalcbenchData("assets", A31,C31,D31) -> 42481000000 | I31: 0.1093665403 | J31: =_xll.CalcbenchData("stockholdersequity", A31,C31,D31) -> 9954000000 | K31: 4.267731565 | L31: 0.1656620454
A32: DD | B32: =_xll.CalcbenchData("entity_name", A32, 2018, 0) -> Dupont E I De Nemours & Co | C32: 2016 | D32: Y | E32: =_xll.CalcbenchData("revenue", A32,C32,D32) -> 23209000000 | F32: =_xll.CalcbenchData("costofrevenue",A32,C32,D32) -> 13955000000 | G32: 0.3987246327 | H32: =_xll.CalcbenchData("assets", A32,C32,D32) -> 39964000000 | I32: 0.5807476729 | J32: =_xll.CalcbenchData("stockholdersequity", A32,C32,D32) -> 10196000000 | K32: 3.919576304 | L32: 0.9076108278
A33: DD | B33: =_xll.CalcbenchData("entity_name", A33, 2018, 0) -> Dupont E I De Nemours & Co | C33: 2017 | D33: Q1 | E33: =_xll.CalcbenchData("revenue", A33,C33,D33) -> 7319000000 | F33: =_xll.CalcbenchData("costofrevenue",A33,C33,D33) -> 4152000000 | G33: 0.4327093865 | H33: =_xll.CalcbenchData("assets", A33,C33,D33) -> 41850000000 | I33: 0.1748864994 | J33: =_xll.CalcbenchData("stockholdersequity", A33,C33,D33) -> 11635000000 | K33: 3.596905887 | L33: 0.2721959605
A34: DD | B34: =_xll.CalcbenchData("entity_name", A34, 2018, 0) -> Dupont E I De Nemours & Co | C34: 2017 | D34: Q2 | E34: =_xll.CalcbenchData("revenue", A34,C34,D34) -> 6971000000 | F34: =_xll.CalcbenchData("costofrevenue",A34,C34,D34) -> 3963000000 | G34: 0.4315019366 | H34: =_xll.CalcbenchData("assets", A34,C34,D34) -> 43206000000 | I34: 0.1613433319 | J34: =_xll.CalcbenchData("stockholdersequity", A34,C34,D34) -> 12594000000 | K34: 3.430681277 | L34: 0.2388438939
A35: DD | B35: =_xll.CalcbenchData("entity_name", A35, 2018, 0) -> Dupont E I De Nemours & Co | C35: 2017 | D35: Q3 | E35: =_xll.CalcbenchData("revenue", A35,C35,D35) ->  | F35: =_xll.CalcbenchData("costofrevenue",A35,C35,D35) ->  | H35: =_xll.CalcbenchData("assets", A35,C35,D35) ->  | J35: =_xll.CalcbenchData("stockholdersequity", A35,C35,D35) -> 
A36: DD | B36: =_xll.CalcbenchData("entity_name", A36, 2018, 0) -> Dupont E I De Nemours & Co | C36: 2017 | D36: Y | E36: =_xll.CalcbenchData("revenue", A36,C36,D36) -> 24334000000 | F36: =_xll.CalcbenchData("costofrevenue",A36,C36,D36) -> 16370000000 | G36: 0.3272787047 | H36: =_xll.CalcbenchData("assets", A36,C36,D36) -> 112964000000 | I36: 0.2154137601 | J36: =_xll.CalcbenchData("stockholdersequity", A36,C36,D36) -> 74932000000 | K36: 1.507553515 | L36: 0.1062830299
A37: DD | B37: =_xll.CalcbenchData("entity_name", A37, 2018, 0) -> Dupont E I De Nemours & Co | C37: 2018 | D37: Q1 | E37: =_xll.CalcbenchData("revenue", A37,C37,D37) -> 6699000000 | F37: =_xll.CalcbenchData("costofrevenue",A37,C37,D37) -> 4847000000 | G37: 0.276459173 | H37: =_xll.CalcbenchData("assets", A37,C37,D37) -> 111888000000 | I37: 0.05987237237 | J37: =_xll.CalcbenchData("stockholdersequity", A37,C37,D37) -> 74966000000 | K37: 1.492516608 | L37: 0.02470453272
A38: DD | B38: =_xll.CalcbenchData("entity_name", A38, 2018, 0) -> Dupont E I De Nemours & Co | C38: 2018 | D38: Q2 | E38: =_xll.CalcbenchData("revenue", A38,C38,D38) -> 8545000000 | F38: =_xll.CalcbenchData("costofrevenue",A38,C38,D38) -> 5669000000 | G38: 0.3365710942 | H38: =_xll.CalcbenchData("assets", A38,C38,D38) -> 108010000000 | I38: 0.07911304509 | J38: =_xll.CalcbenchData("stockholdersequity", A38,C38,D38) -> 72767000000 | K38: 1.484326687 | L38: 0.03952341034
A39: DD | B39: =_xll.CalcbenchData("entity_name", A39, 2018, 0) -> Dupont E I De Nemours & Co | C39: 2018 | D39: Q3 | E39: =_xll.CalcbenchData("revenue", A39,C39,D39) -> 5294000000 | F39: =_xll.CalcbenchData("costofrevenue",A39,C39,D39) -> 3686000000 | G39: 0.3037400831 | H39: =_xll.CalcbenchData("assets", A39,C39,D39) -> 101724000000 | I39: 0.05204278243 | J39: =_xll.CalcbenchData("stockholdersequity", A39,C39,D39) -> 66974000000 | K39: 1.518858064 | L39: 0.02400931705
A40: DD | B40: =_xll.CalcbenchData("entity_name", A40, 2018, 0) -> Dupont E I De Nemours & Co | C40: 2018 | D40: Y | E40: =_xll.CalcbenchData("revenue", A40,C40,D40) -> 26279000000 | F40: =_xll.CalcbenchData("costofrevenue",A40,C40,D40) -> 18182000000 | G40: 0.3081167472 | H40: =_xll.CalcbenchData("assets", A40,C40,D40) -> 101025000000 | I40: 0.2601237317 | J40: =_xll.CalcbenchData("stockholdersequity", A40,C40,D40) -> 70088000000 | K40: 1.441402237 | L40: 0.1155261956
A41: DWDP | B41: =_xll.CalcbenchData("entity_name", A41, 2018, 0) -> DowDuPont Inc. | C41: 2009 | D41: Q2 | E41: =_xll.CalcbenchData("revenue", A41,C41,D41) -> 11322000000 | F41: =_xll.CalcbenchData("costofrevenue",A41,C41,D41) -> 9764000000 | G41: =(E41-F41)/E41 -> 0.1376081964 | H41: =_xll.CalcbenchData("assets", A41,C41,D41) -> 66168000000 | I41: =E41/H41 -> 0.1711099021 | J41: =_xll.CalcbenchData("stockholdersequity", A41,C41,D41) -> 20223000000 | K41: =H41/J41 -> 3.271918113 | L41: =G41*I41*K41 -> 0.07704099293
A42: DWDP | B42: =_xll.CalcbenchData("entity_name", A42, 2018, 0) -> DowDuPont Inc. | C42: 2009 | D42: Q3 | E42: =_xll.CalcbenchData("revenue", A42,C42,D42) -> 12046000000 | F42: =_xll.CalcbenchData("costofrevenue",A42,C42,D42) -> 10386000000 | G42: 0.1378050805 | H42: =_xll.CalcbenchData("assets", A42,C42,D42) -> 67030000000 | I42: 0.1797105774 | J42: =_xll.CalcbenchData("stockholdersequity", A42,C42,D42) -> 21245000000 | K42: 3.155095317 | L42: 0.07813603201
A43: DWDP | B43: =_xll.CalcbenchData("entity_name", A43, 2018, 0) -> DowDuPont Inc. | C43: 2009 | D43: Y | E43: =_xll.CalcbenchData("revenue", A43,C43,D43) -> 44875000000 | F43: =_xll.CalcbenchData("costofrevenue",A43,C43,D43) -> 39148000000 | G43: 0.1276211699 | H43: =_xll.CalcbenchData("assets", A43,C43,D43) -> 66018000000 | I43: 0.6797388591 | J43: =_xll.CalcbenchData("stockholdersequity", A43,C43,D43) -> 21124000000 | K43: 3.125260367 | L43: 0.2711134255
A44: DWDP | B44: =_xll.CalcbenchData("entity_name", A44, 2018, 0) -> DowDuPont Inc. | C44: 2010 | D44: Q1 | E44: =_xll.CalcbenchData("revenue", A44,C44,D44) -> 13417000000 | F44: =_xll.CalcbenchData("costofrevenue",A44,C44,D44) -> 11541000000 | G44: 0.1398226131 | H44: =_xll.CalcbenchData("assets", A44,C44,D44) -> 67546000000 | I44: 0.1986350043 | J44: =_xll.CalcbenchData("stockholdersequity", A44,C44,D44) -> 21092000000 | K44: 3.202446425 | L44: 0.08894367533
A45: DWDP | B45: =_xll.CalcbenchData("entity_name", A45, 2018, 0) -> DowDuPont Inc. | C45: 2010 | D45: Q2 | E45: =_xll.CalcbenchData("revenue", A45,C45,D45) -> 13618000000 | F45: =_xll.CalcbenchData("costofrevenue",A45,C45,D45) -> 11580000000 | G45: 0.1496548686 | H45: =_xll.CalcbenchData("assets", A45,C45,D45) -> 64594000000 | I45: 0.2108245348 | J45: =_xll.CalcbenchData("stockholdersequity", A45,C45,D45) -> 21167000000 | K45: 3.051636982 | L45: 0.09628194832
A46: DWDP | B46: =_xll.CalcbenchData("entity_name", A46, 2018, 0) -> DowDuPont Inc. | C46: 2010 | D46: Q3 | E46: =_xll.CalcbenchData("revenue", A46,C46,D46) -> 12868000000 | F46: =_xll.CalcbenchData("costofrevenue",A46,C46,D46) -> 10841000000 | G46: 0.1575225365 | H46: =_xll.CalcbenchData("assets", A46,C46,D46) -> 66001000000 | I46: 0.1949667429 | J46: =_xll.CalcbenchData("stockholdersequity", A46,C46,D46) -> 22604000000 | K46: 2.919881437 | L46: 0.08967439391
A47: DWDP | B47: =_xll.CalcbenchData("entity_name", A47, 2018, 0) -> DowDuPont Inc. | C47: 2010 | D47: Y | E47: =_xll.CalcbenchData("revenue", A47,C47,D47) -> 53674000000 | F47: =_xll.CalcbenchData("costofrevenue",A47,C47,D47) -> 45780000000 | G47: 0.1470730708 | H47: =_xll.CalcbenchData("assets", A47,C47,D47) -> 69588000000 | I47: 0.7713111456 | J47: =_xll.CalcbenchData("stockholdersequity", A47,C47,D47) -> 22642000000 | K47: 3.07340341 | L47: 0.3486441127
A48: DWDP | B48: =_xll.CalcbenchData("entity_name", A48, 2018, 0) -> DowDuPont Inc. | C48: 2011 | D48: Q1 | E48: =_xll.CalcbenchData("revenue", A48,C48,D48) -> 14733000000 | F48: =_xll.CalcbenchData("costofrevenue",A48,C48,D48) -> 12117000000 | G48: 0.1775605783 | H48: =_xll.CalcbenchData("assets", A48,C48,D48) -> 68442000000 | I48: 0.2152625581 | J48: =_xll.CalcbenchData("stockholdersequity", A48,C48,D48) -> 23837000000 | K48: 2.871250577 | L48: 0.1097453539
A49: DWDP | B49: =_xll.CalcbenchData("entity_name", A49, 2018, 0) -> DowDuPont Inc. | C49: 2011 | D49: Q2 | E49: =_xll.CalcbenchData("revenue", A49,C49,D49) -> 16046000000 | F49: =_xll.CalcbenchData("costofrevenue",A49,C49,D49) -> 13551000000 | G49: 0.1554904649 | H49: =_xll.CalcbenchData("assets", A49,C49,D49) -> 68447000000 | I49: 0.2344295586 | J49: =_xll.CalcbenchData("stockholdersequity", A49,C49,D49) -> 25039000000 | K49: 2.73361556 | L49: 0.09964455449
A50: DWDP | B50: =_xll.CalcbenchData("entity_name", A50, 2018, 0) -> DowDuPont Inc. | C50: 2011 | D50: Q3 | E50: =_xll.CalcbenchData("revenue", A50,C50,D50) -> 15109000000 | F50: =_xll.CalcbenchData("costofrevenue",A50,C50,D50) -> 12928000000 | G50: 0.144351049 | H50: =_xll.CalcbenchData("assets", A50,C50,D50) -> 66951000000 | I50: 0.2256725068 | J50: =_xll.CalcbenchData("stockholdersequity", A50,C50,D50) -> 25141000000 | K50: 2.663020564 | L50: 0.08675072591
A51: DWDP | B51: =_xll.CalcbenchData("entity_name", A51, 2018, 0) -> DowDuPont Inc. | C51: 2011 | D51: Y | E51: =_xll.CalcbenchData("revenue", A51,C51,D51) -> 59985000000 | F51: =_xll.CalcbenchData("costofrevenue",A51,C51,D51) -> 51029000000 | G51: 0.1493039927 | H51: =_xll.CalcbenchData("assets", A51,C51,D51) -> 69224000000 | I51: 0.8665347278 | J51: =_xll.CalcbenchData("stockholdersequity", A51,C51,D51) -> 23291000000 | K51: 2.97213516 | L51: 0.3845262118
A52: DWDP | B52: =_xll.CalcbenchData("entity_name", A52, 2018, 0) -> DowDuPont Inc. | C52: 2012 | D52: Q1 | E52: =_xll.CalcbenchData("revenue", A52,C52,D52) -> 14719000000 | F52: =_xll.CalcbenchData("costofrevenue",A52,C52,D52) -> 12285000000 | G52: 0.1653644949 | H52: =_xll.CalcbenchData("assets", A52,C52,D52) -> 69598000000 | I52: 0.2114859622 | J52: =_xll.CalcbenchData("stockholdersequity", A52,C52,D52) -> 24051000000 | K52: 2.893767411 | L52: 0.1012016132
A53: DWDP | B53: =_xll.CalcbenchData("entity_name", A53, 2018, 0) -> DowDuPont Inc. | C53: 2012 | D53: Q2 | E53: =_xll.CalcbenchData("revenue", A53,C53,D53) -> 14513000000 | F53: =_xll.CalcbenchData("costofrevenue",A53,C53,D53) -> 12200000000 | G53: 0.159374354 | H53: =_xll.CalcbenchData("assets", A53,C53,D53) -> 68842000000 | I53: 0.2108160716 | J53: =_xll.CalcbenchData("stockholdersequity", A53,C53,D53) -> 24224000000 | K53: 2.841892338 | L53: 0.0954838177
A54: DWDP | B54: =_xll.CalcbenchData("entity_name", A54, 2018, 0) -> DowDuPont Inc. | C54: 2012 | D54: Q3 | E54: =_xll.CalcbenchData("revenue", A54,C54,D54) -> 13637000000 | F54: =_xll.CalcbenchData("costofrevenue",A54,C54,D54) -> 11368000000 | G54: 0.1663855687 | H54: =_xll.CalcbenchData("assets", A54,C54,D54) -> 69368000000 | I54: 0.1965892054 | J54: =_xll.CalcbenchData("stockholdersequity", A54,C54,D54) -> 24961000000 | K54: 2.779055326 | L54: 0.09090180682
A55: DWDP | B55: =_xll.CalcbenchData("entity_name", A55, 2018, 0) -> DowDuPont Inc. | C55: 2012 | D55: Y | E55: =_xll.CalcbenchData("revenue", A55,C55,D55) -> 56786000000 | F55: =_xll.CalcbenchData("costofrevenue",A55,C55,D55) -> 47792000000 | G55: 0.1583841088 | H55: =_xll.CalcbenchData("assets", A55,C55,D55) -> 69605000000 | I55: 0.815832196 | J55: =_xll.CalcbenchData("stockholdersequity", A55,C55,D55) -> 21867000000 | K55: 3.183106965 | L55: 0.4113047057
A56: DWDP | B56: =_xll.CalcbenchData("entity_name", A56, 2018, 0) -> DowDuPont Inc. | C56: 2013 | D56: Q1 | E56: =_xll.CalcbenchData("revenue", A56,C56,D56) -> 14383000000 | F56: =_xll.CalcbenchData("costofrevenue",A56,C56,D56) -> 11707000000 | G56: 0.1860529792 | H56: =_xll.CalcbenchData("assets", A56,C56,D56) -> 69304000000 | I56: 0.2075349186 | J56: =_xll.CalcbenchData("stockholdersequity", A56,C56,D56) -> 21996000000 | K56: 3.150754683 | L56: 0.1216584834
A57: DWDP | B57: =_xll.CalcbenchData("entity_name", A57, 2018, 0) -> DowDuPont Inc. | C57: 2013 | D57: Q2 | E57: =_xll.CalcbenchData("revenue", A57,C57,D57) -> 14577000000 | F57: =_xll.CalcbenchData("costofrevenue",A57,C57,D57) -> 12103000000 | G57: 0.169719421 | H57: =_xll.CalcbenchData("assets", A57,C57,D57) -> 70142000000 | I57: 0.2078212768 | J57: =_xll.CalcbenchData("stockholdersequity", A57,C57,D57) -> 24200000000 | K57: 2.898429752 | L57: 0.102231405
A58: DWDP | B58: =_xll.CalcbenchData("entity_name", A58, 2018, 0) -> DowDuPont Inc. | C58: 2013 | D58: Q3 | E58: =_xll.CalcbenchData("revenue", A58,C58,D58) -> 13734000000 | F58: =_xll.CalcbenchData("costofrevenue",A58,C58,D58) -> 11716000000 | G58: 0.1469346148 | H58: =_xll.CalcbenchData("assets", A58,C58,D58) -> 70206000000 | I58: 0.1956243056 | J58: =_xll.CalcbenchData("stockholdersequity", A58,C58,D58) -> 25018000000 | K58: 2.806219522 | L58: 0.08066192342
A59: DWDP | B59: =_xll.CalcbenchData("entity_name", A59, 2018, 0) -> DowDuPont Inc. | C59: 2014 | D59: Q1 | E59: =_xll.CalcbenchData("revenue", A59,C59,D59) -> 14461000000 | F59: =_xll.CalcbenchData("costofrevenue",A59,C59,D59) -> 11733000000 | G59: 0.1886453219 | H59: =_xll.CalcbenchData("assets", A59,C59,D59) -> 69233000000 | I59: 0.2088743807 | J59: =_xll.CalcbenchData("stockholdersequity", A59,C59,D59) -> 27723000000 | K59: 2.497312701 | L59: 0.09840204884
A60: DWDP | B60: =_xll.CalcbenchData("entity_name", A60, 2018, 0) -> DowDuPont Inc. | C60: 2014 | D60: Q2 | E60: =_xll.CalcbenchData("revenue", A60,C60,D60) -> 14917000000 | F60: =_xll.CalcbenchData("costofrevenue",A60,C60,D60) -> 12344000000 | G60: =(E60-F60)/E60 -> 0.1724877656 | H60: =_xll.CalcbenchData("assets", A60,C60,D60) -> 68756000000 | I60: =E60/H60 -> 0.2169556111 | J60: =_xll.CalcbenchData("stockholdersequity", A60,C60,D60) -> 27735000000 | K60: =H60/J60 -> 2.479033712 | L60: =G60*I60*K60 -> 0.09277086714
A61: DWDP | B61: =_xll.CalcbenchData("entity_name", A61, 2018, 0) -> DowDuPont Inc. | C61: 2014 | D61: Q3 | E61: =_xll.CalcbenchData("revenue", A61,C61,D61) -> 14405000000 | F61: =_xll.CalcbenchData("costofrevenue",A61,C61,D61) -> 11776000000 | G61: 0.1825060743 | H61: =_xll.CalcbenchData("assets", A61,C61,D61) -> 69573000000 | I61: 0.2070487114 | J61: =_xll.CalcbenchData("stockholdersequity", A61,C61,D61) -> 26711000000 | K61: 2.604657257 | L61: 0.09842387032
A62: DWDP | B62: =_xll.CalcbenchData("entity_name", A62, 2018, 0) -> DowDuPont Inc. | C62: 2014 | D62: Y | E62: =_xll.CalcbenchData("revenue", A62,C62,D62) -> 58167000000 | F62: =_xll.CalcbenchData("costofrevenue",A62,C62,D62) -> 47464000000 | G62: 0.1840046762 | H62: =_xll.CalcbenchData("assets", A62,C62,D62) -> 68639000000 | I62: 0.8474336747 | J62: =_xll.CalcbenchData("stockholdersequity", A62,C62,D62) -> 23354000000 | K62: 2.939068254 | L62: 0.4582940824
A63: DWDP | B63: =_xll.CalcbenchData("entity_name", A63, 2018, 0) -> DowDuPont Inc. | C63: 2015 | D63: Q1 | E63: =_xll.CalcbenchData("revenue", A63,C63,D63) -> 12370000000 | F63: =_xll.CalcbenchData("costofrevenue",A63,C63,D63) -> 9535000000 | G63: 0.2291835085 | H63: =_xll.CalcbenchData("assets", A63,C63,D63) -> 67789000000 | I63: 0.1824779832 | J63: =_xll.CalcbenchData("stockholdersequity", A63,C63,D63) -> 23214000000 | K63: 2.920177479 | L63: 0.12212458
A64: DWDP | B64: =_xll.CalcbenchData("entity_name", A64, 2018, 0) -> DowDuPont Inc. | C64: 2015 | D64: Q2 | E64: =_xll.CalcbenchData("revenue", A64,C64,D64) -> 12910000000 | F64: =_xll.CalcbenchData("costofrevenue",A64,C64,D64) -> 10146000000 | G64: 0.2140975988 | H64: =_xll.CalcbenchData("assets", A64,C64,D64) -> 69334000000 | I64: 0.1862001327 | J64: =_xll.CalcbenchData("stockholdersequity", A64,C64,D64) -> 24451000000 | K64: 2.835630445 | L64: 0.1130424114
A65: DWDP | B65: =_xll.CalcbenchData("entity_name", A65, 2018, 0) -> DowDuPont Inc. | C65: 2015 | D65: Q3 | E65: =_xll.CalcbenchData("revenue", A65,C65,D65) -> 12036000000 | F65: =_xll.CalcbenchData("costofrevenue",A65,C65,D65) -> 9349000000 | G65: 0.2232469259 | H65: =_xll.CalcbenchData("assets", A65,C65,D65) -> 69884000000 | I65: 0.172228264 | J65: =_xll.CalcbenchData("stockholdersequity", A65,C65,D65) -> 25166000000 | K65: 2.776921243 | L65: 0.1067710403
A66: DWDP | B66: =_xll.CalcbenchData("entity_name", A66, 2018, 0) -> DowDuPont Inc. | C66: 2015 | D66: Y | E66: =_xll.CalcbenchData("revenue", A66,C66,D66) -> 48778000000 | F66: =_xll.CalcbenchData("costofrevenue",A66,C66,D66) -> 37745000000 | G66: 0.2261880356 | H66: =_xll.CalcbenchData("assets", A66,C66,D66) -> 67938000000 | I66: 0.7179781566 | J66: =_xll.CalcbenchData("stockholdersequity", A66,C66,D66) -> 26183000000 | K66: 2.594737043 | L66: 0.4213802849
A67: DWDP | B67: =_xll.CalcbenchData("entity_name", A67, 2018, 0) -> DowDuPont Inc. | C67: 2016 | D67: Q1 | E67: =_xll.CalcbenchData("revenue", A67,C67,D67) -> 10703000000 | F67: =_xll.CalcbenchData("costofrevenue",A67,C67,D67) -> 7951000000 | G67: 0.2571241708 | H67: =_xll.CalcbenchData("assets", A67,C67,D67) -> 68440000000 | I67: 0.1563851549 | J67: =_xll.CalcbenchData("stockholdersequity", A67,C67,D67) -> 26434000000 | K67: 2.589089809 | L67: 0.1041083453
A68: DWDP | B68: =_xll.CalcbenchData("entity_name", A68, 2018, 0) -> DowDuPont Inc. | C68: 2016 | D68: Q2 | E68: =_xll.CalcbenchData("revenue", A68,C68,D68) -> 11952000000 | F68: =_xll.CalcbenchData("costofrevenue",A68,C68,D68) -> 9275000000 | G68: 0.2239792503 | H68: =_xll.CalcbenchData("assets", A68,C68,D68) -> 81524000000 | I68: 0.1466071341 | J68: =_xll.CalcbenchData("stockholdersequity", A68,C68,D68) -> 30234000000 | K68: 2.696434478 | L68: 0.08854270027
A69: DWDP | B69: =_xll.CalcbenchData("entity_name", A69, 2018, 0) -> DowDuPont Inc. | C69: 2016 | D69: Q3 | E69: =_xll.CalcbenchData("revenue", A69,C69,D69) -> 12483000000 | F69: =_xll.CalcbenchData("costofrevenue",A69,C69,D69) -> 9840000000 | G69: 0.21172795 | H69: =_xll.CalcbenchData("assets", A69,C69,D69) -> 80624000000 | I69: 0.1548298273 | J69: =_xll.CalcbenchData("stockholdersequity", A69,C69,D69) -> 30349000000 | K69: 2.656561995 | L69: 0.08708688919
A70: DWDP | B70: =_xll.CalcbenchData("entity_name", A70, 2018, 0) -> DowDuPont Inc. | C70: 2016 | D70: Y | E70: =_xll.CalcbenchData("revenue", A70,C70,D70) -> 48158000000 | F70: =_xll.CalcbenchData("costofrevenue",A70,C70,D70) -> 37668000000 | G70: 0.2178246605 | H70: =_xll.CalcbenchData("assets", A70,C70,D70) -> 79511000000 | I70: 0.6056772019 | J70: =_xll.CalcbenchData("stockholdersequity", A70,C70,D70) -> 27229000000 | K70: 2.920085203 | L70: 0.3852510191
A71: DWDP | B71: =_xll.CalcbenchData("entity_name", A71, 2018, 0) -> DowDuPont Inc. | C71: 2017 | D71: Q1 | E71: =_xll.CalcbenchData("revenue", A71,C71,D71) -> 13230000000 | F71: =_xll.CalcbenchData("costofrevenue",A71,C71,D71) -> 10194000000 | G71: 0.229478458 | H71: =_xll.CalcbenchData("assets", A71,C71,D71) -> 80828000000 | I71: 0.1636809027 | J71: =_xll.CalcbenchData("stockholdersequity", A71,C71,D71) -> 28334000000 | K71: 2.852685819 | L71: 0.10715042
A72: DWDP | B72: =_xll.CalcbenchData("entity_name", A72, 2018, 0) -> DowDuPont Inc. | C72: 2017 | D72: Q2 | E72: =_xll.CalcbenchData("revenue", A72,C72,D72) -> 13834000000 | F72: =_xll.CalcbenchData("costofrevenue",A72,C72,D72) -> 10761000000 | G72: 0.2221338731 | H72: =_xll.CalcbenchData("assets", A72,C72,D72) -> 82247000000 | I72: 0.1682006639 | J72: =_xll.CalcbenchData("stockholdersequity", A72,C72,D72) -> 29589000000 | K72: 2.779647842 | L72: 0.1038561628
A73: DWDP | B73: =_xll.CalcbenchData("entity_name", A73, 2018, 0) -> DowDuPont Inc. | C73: 2017 | D73: Q3 | E73: =_xll.CalcbenchData("revenue", A73,C73,D73) -> 15354000000 | F73: =_xll.CalcbenchData("costofrevenue",A73,C73,D73) -> 12186000000 | G73: 0.2063305979 | H73: =_xll.CalcbenchData("assets", A73,C73,D73) -> 198527000000 | I73: 0.0773396062 | J73: =_xll.CalcbenchData("stockholdersequity", A73,C73,D73) -> 104534000000 | K73: 1.899161995 | L73: 0.03030592917
A74: DWDP | B74: =_xll.CalcbenchData("entity_name", A74, 2018, 0) -> DowDuPont Inc. | C74: 2017 | D74: Y | E74: =_xll.CalcbenchData("revenue", A74,C74,D74) -> 62484000000 | F74: =_xll.CalcbenchData("costofrevenue",A74,C74,D74) -> 49791000000 | G74: 0.2031400038 | H74: =_xll.CalcbenchData("assets", A74,C74,D74) -> 192419000000 | I74: 0.3247288469 | J74: =_xll.CalcbenchData("stockholdersequity", A74,C74,D74) -> 101886000000 | K74: 1.888571541 | L74: 0.1245804134
A75: DWDP | B75: =_xll.CalcbenchData("entity_name", A75, 2018, 0) -> DowDuPont Inc. | C75: 2018 | D75: Q1 | E75: =_xll.CalcbenchData("revenue", A75,C75,D75) -> 21510000000 | F75: =_xll.CalcbenchData("costofrevenue",A75,C75,D75) -> 16315000000 | G75: 0.2415155742 | H75: =_xll.CalcbenchData("assets", A75,C75,D75) -> 192441000000 | I75: 0.1117745179 | J75: =_xll.CalcbenchData("stockholdersequity", A75,C75,D75) -> 102924000000 | K75: 1.869738836 | L75: 0.05047413626
A76: DWDP | B76: =_xll.CalcbenchData("entity_name", A76, 2018, 0) -> DowDuPont Inc. | C76: 2018 | D76: Q2 | E76: =_xll.CalcbenchData("revenue", A76,C76,D76) -> 24245000000 | F76: =_xll.CalcbenchData("costofrevenue",A76,C76,D76) -> 17974000000 | G76: 0.2586512683 | H76: =_xll.CalcbenchData("assets", A76,C76,D76) -> 187367000000 | I76: 0.1293984533 | J76: =_xll.CalcbenchData("stockholdersequity", A76,C76,D76) -> 99882000000 | K76: 1.875883543 | L76: 0.06278408522
A77: DWDP | B77: =_xll.CalcbenchData("entity_name", A77, 2018, 0) -> DowDuPont Inc. | C77: 2018 | D77: Q3 | E77: =_xll.CalcbenchData("revenue", A77,C77,D77) -> 20123000000 | F77: =_xll.CalcbenchData("costofrevenue",A77,C77,D77) -> 15477000000 | G77: 0.2308800875 | H77: =_xll.CalcbenchData("assets", A77,C77,D77) -> 184453000000 | I77: 0.109095542 | J77: =_xll.CalcbenchData("stockholdersequity", A77,C77,D77) -> 99744000000 | K77: 1.849264116 | L77: 0.04657924286
A78: DWDP | B78: =_xll.CalcbenchData("entity_name", A78, 2018, 0) -> DowDuPont Inc. | C78: 2018 | D78: Y | E78: =_xll.CalcbenchData("revenue", A78,C78,D78) -> 85977000000 | F78: =_xll.CalcbenchData("costofrevenue",A78,C78,D78) -> 65333000000 | G78: 0.2401107273 | H78: =_xll.CalcbenchData("assets", A78,C78,D78) -> 188030000000 | I78: 0.4572515024 | J78: =_xll.CalcbenchData("stockholdersequity", A78,C78,D78) -> 96179000000 | K78: 1.955000572 | L78: 0.2146414498

Sheet analysis
B3: Column Labels
B4: DD | F4: DOW | J4: Total %change profit margin | K4: Total Sum of operating leverage | L4: Total _Financial Leverage | M4: Total ROE
A5: Row Labels | B5: %change profit margin | C5: Sum of operating leverage | D5: _Financial Leverage | E5: ROE | F5: %change profit margin | G5: Sum of operating leverage | H5: _Financial Leverage | I5: ROE
A6: 2009
A7: Q2
A8: Q3
A9: Y
A10: 2010 | B10: 0.08678878732 | C10: 0.5460628225 | D10: 0.1869944416 | E10: 0.1451761787 | F10: 0.4565960846 | J10: 0.2067135033
A11: Q1
A12: Q2 | B12: 0.1613596479 | C12: 0.1976784847 | D12: -0.13818461 | E12: 0.05533265644 | F12: 0.08754327458 | J12: 0.1378029057
A13: Q3 | B13: -0.1136267157 | C13: 0.04014096344 | D13: -0.07563276533 | E13: -0.02917872344 | F13: 0.1430822138 | G13: 0.08489297513 | H13: -0.07455048296 | I13: 0.01153836191 | J13: -0.02453335939 | K13: 0.06312477478 | L13: -0.07518520949 | M13: -0.01764036154
A14: Y | C14: 0.08994097307 | D14: -0.1737943097 | E14: -0.2428440727 | F14: 0.1008251589 | G14: 0.04801226261 | H14: -0.01659284401 | I14: 0.01022836357 | J14: -0.6609483025 | K14: 0.06775935227 | L14: -0.1132609463 | M14: -0.2326157091
A15: 2011 | B15: 0.7499289919 | C15: -0.06383975891 | D15: 0.001057977051 | E15: 0.431787645 | F15: 0.01124555799 | G15: 0.09558319644 | H15: -0.08225002897 | I15: 0.00642889095 | J15: 0.4607767612 | K15: 0.0143353856 | L15: -0.034025314 | M15: 0.438216536
A16: Q1 | B16: -0.06886534799 | C16: 0.01419166969 | D16: -0.1625049685 | E16: -0.0756707337 | F16: 0.2698988694 | G16: 0.08370908161 | H16: -0.1034196375 | I16: 0.02080167853 | J16: 0.02890660461 | K16: 0.0461961834 | L16: -0.1379702572 | M16: -0.05486905516
A17: Q2 | B17: -0.07708375043 | C17: -0.08704921857 | D17: -0.0608224449 | E17: -0.06964681253 | F17: 0.03899369538 | G17: 0.11196526 | H17: -0.1042133859 | I17: 0.003362606179 | J17: -0.04167668967 | K17: 0.005859198604 | L17: -0.07942719483 | M17: -0.06628420635
A18: Q3 | B18: 0.02618748995 | C18: -0.01871459111 | D18: -0.03898989685 | E18: -0.005431733156 | F18: -0.08361652733 | G18: 0.1574923157 | H18: -0.08796962426 | I18: -0.002923668007 | J18: -0.01846931209 | K18: 0.0736350201 | L18: -0.059258367 | M18: -0.008355401162
A19: Y | C19: -0.1760978866 | D19: 0.2811272425 | E19: 0.5825369244 | F19: -0.1676809071 | G19: 0.02905570701 | H19: -0.03294987237 | I19: -0.01481172576 | J19: 4.983164031 | K19: -0.06957231334 | L19: 0.1470015322 | M19: 0.5677251987
A20: 2012 | B20: -0.08777791749 | C20: -0.1047100063 | D20: 0.1323063811 | E20: -0.07136542055 | F20: 0.06350139406 | G20: -0.06845683486 | H20: 0.04072947418 | I20: 0.0104586363 | J20: -0.04678389805 | K20: -0.08550883918 | L20: 0.09566615109 | M20: -0.06090678425
A21: Q1 | B21: 0.03260993237 | C21: -0.140399283 | D21: 0.27527626 | E21: 0.03777104039 | F21: -0.06868688726 | G21: -0.01754413713 | H21: 0.007842169634 | I21: -0.008543740623 | J21: -0.003473326117 | K21: -0.08181102694 | L21: 0.1597754534 | M21: 0.02922729977
A22: Q2 | B22: 0.3585220271 | C22: -0.07178660828 | D22: 0.2309119485 | E22: 0.1458399855 | F22: 0.02497831051 | G22: -0.1007274304 | H22: 0.03960936572 | I22: -0.004160736794 | J22: 0.2482169108 | K22: -0.0867226418 | L22: 0.1510955681 | M22: 0.1416792487
A23: Q3 | B23: 0.4780657577 | C23: -0.1655754542 | D23: 0.1886559318 | E23: 0.07588555811 | F23: 0.1526453723 | G23: -0.1288739235 | H23: 0.04357261219 | I23: 0.004151080913 | J23: 0.3545030234 | K23: -0.1448378887 | L23: 0.1304508333 | M23: 0.08003663902
A24: Y | B24: -0.515591085 | C24: -0.02678030597 | D24: -0.0835823087 | E24: -0.3308620045 | F24: 0.2040763821 | G24: -0.01817252643 | H24: 0.0709832474 | I24: 0.0190120328 | J24: -0.415478006 | K24: -0.02183694702 | L24: -0.02793124737 | M24: -0.3118499717
A25: 2013 | B25: -0.2178718138 | C25: -0.2093282343 | D25: -0.3873391337 | E25: -0.3891918012 | F25: -0.2061510745 | G25: -0.2538406183 | H25: -0.2429869487 | I25: -0.0734913642 | J25: -0.2143282303 | K25: -0.23334342 | L25: -0.3324792109 | M25: -0.4626831654
A26: Q1 | B26: 0.2378572274 | C26: 0.02307129202 | D26: -0.1475601796 | E26: 0.02576946909 | F26: 0.1251083817 | G26: -0.0186822973 | H26: 0.08880716217 | I26: 0.02045687012 | J26: 0.2003228831 | K26: 0.001765778322 | L26: -0.05884982101 | M26: 0.04622633921
A27: Q2 | B27: -0.07725280949 | C27: -0.04523431753 | D27: -0.1819222513 | E27: -0.1144878652 | F27: 0.06491048727 | G27: -0.01420572314 | H27: 0.01989428422 | I27: 0.006747587257 | J27: -0.03864679293 | K27: -0.02946636973 | L27: -0.1058744356 | M27: -0.1077402779
A28: Q3 | B28: -0.02958027818 | C28: 0.03562937456 | D28: -0.2083659908 | E28: -0.04879848525 | F28: -0.1169028901 | G28: -0.004908203278 | H28: 0.009774614912 | I28: -0.0102398834 | J28: -0.05779561277 | K28: 0.01229673079 | L28: -0.1275772101 | M28: -0.05903836866
A29: 2014 | B29: -0.6425149789 | C29: -0.615918291 | D29: -0.7513331991 | E29: -0.5830357283 | F29: -0.6247410196 | G29: -0.658132493 | H29: -0.7179899739 | I29: -0.2061497629 | J29: -0.63708537 | K29: -0.6380846527 | L29: -0.7369624964 | M29: -0.7891854912
A30: Q1 | B30: -0.003936764145 | C30: 0.02205973301 | D30: -0.291946219 | E30: -0.09763780931 | F30: 0.01393335758 | G30: 0.006454152891 | H30: -0.2073922117 | I30: -0.02325643452 | J30: 0.001639463747 | K30: 0.01425924894 | L30: -0.2552337917 | M30: -0.1208942438
A31: Grand Total
